bitfinex-derivatives/quotes_BTCF0:USTF0_20251130
["timestamp","ask_amount","ask_price","bid_price","bid_amount"]
[1764479165576,0.41220926,90807.0,90806.0,0.06008507]
[1764479167283,0.42036926,90807.0,90806.0,0.06008507]
[1764479167971,0.42036926,90807.0,90806.0,0.01477507]
[1764479168167,0.42036926,90807.0,90806.0,0.06008507]
[1764479169779,0.41220926,90807.0,90806.0,0.06008507]
[1764479171281,0.38592801,90807.0,90806.0,0.06008507]
[1764479176384,0.42559472,90807.0,90806.0,0.06008507]
[1764479178191,0.39929801,90807.0,90806.0,0.06008507]
[1764479179792,0.38592801,90807.0,90806.0,0.06008507]
[1764479181595,0.2650465,90807.0,90806.0,0.06008507]
[1764479182294,0.2210865,90807.0,90806.0,0.06008507]
[1764479182988,0.2434265,90807.0,90806.0,0.06008507]
[1764479183190,0.2647165,90807.0,90806.0,0.06008507]
[1764479186692,0.2714065,90807.0,90806.0,0.06008507]
[1764479186895,0.2647165,90807.0,90806.0,0.06008507]
[1764479189994,0.2690565,90807.0,90806.0,0.01477507]
[1764479204914,0.0490565,90807.0,90806.0,0.01477507]
[1764479212520,0.0490565,90807.0,90806.0,0.03715507]
[1764479213924,0.0490565,90807.0,90806.0,0.05906507]
[1764479216725,0.0490565,90807.0,90806.0,0.03715507]
[1764479217225,0.07573316,90807.0,90806.0,0.03715507]
[1764479219321,0.07573316,90807.0,90806.0,0.01477507]
[1764479221412,0.07573316,90807.0,90806.0,0.03715507]
[1764479223725,0.07573316,90807.0,90806.0,0.05906507]
[1764479225928,0.07231316,90807.0,90806.0,0.06572507]
[1764479226427,0.0456365,90807.0,90806.0,0.06572507]
[1764479228532,0.0010865,90807.0,90806.0,0.06572507]
[1764479228726,0.02214515,90816.0,90815.0,0.04429]
[1764479229029,0.04435515,90816.0,90815.0,0.04429]
[1764479230226,0.04835515,90816.0,90815.0,0.04429]
[1764479239741,0.02614515,90816.0,90815.0,0.04429]
[1764479240739,0.04885515,90816.0,90815.0,0.04429]
[1764479243040,0.02614515,90816.0,90815.0,0.04429]
[1764479243241,0.00416515,90816.0,90815.0,0.04429]
[1764479243436,0.17496819,90830.0,90829.0,0.0442]
[1764479243642,0.04526,90830.0,90829.0,0.0442]
[1764479245846,0.05126,90830.0,90829.0,0.0442]
[1764479254958,0.04526,90821.0,90820.0,0.04436515]
[1764479256060,0.04726,90821.0,90820.0,0.04436515]
[1764479280470,0.04726,90821.0,90820.0,0.05627515]
[1764479281463,0.02424,90821.0,90820.0,0.05627515]
[1764479281674,0.04643,90821.0,90820.0,0.05627515]
[1764479281874,0.04643,90821.0,90820.0,0.04436515]
[1764479282576,0.07326812,90821.0,90820.0,0.00016515]
[1764479283872,0.04481,90817.0,90816.0,0.00511]
[1764479284172,0.04481,90807.0,90806.0,0.05891507]
[1764479285978,0.05167,90807.0,90806.0,0.05891507]
[1764479286178,0.05167,90807.0,90806.0,0.01477507]
[1764479286481,0.16892194,90807.0,90806.0,0.01477507]
[1764479286677,0.16892194,90807.0,90806.0,0.01677507]
[1764479292486,0.16892194,90807.0,90806.0,0.00227531]
[1764479303604,0.60892194,90807.0,90806.0,0.00227531]
[1764479303909,0.04409,90799.0,90798.0,0.00012488]
[1764479304402,0.16111509,90799.0,90798.0,0.00012488]
[1764479305306,0.04409,90781.0,90780.0,0.05771]
[1764479306302,0.04409,90781.0,90780.0,0.07174292]
[1764479306303,0.04420763,90781.0,90780.0,0.07174292]
[1764479307806,0.04420763,90781.0,90780.0,0.07874292]
[1764479310204,0.00011763,90781.0,90780.0,0.07874292]
[1764479322521,0.1738955,90810.0,90809.0,0.04439]
[1764479322716,0.07086466,90810.0,90809.0,0.04439]
[1764479323119,0.04409,90810.0,90809.0,0.04439]
[1764479323319,0.04413654,90810.0,90809.0,0.04439]
[1764479323919,0.04713654,90810.0,90809.0,0.04439]
[1764479325620,0.05393654,90810.0,90809.0,0.04439]
[1764479340438,0.00984654,90810.0,90801.0,0.04306]
[1764479340637,0.04351,90802.0,90801.0,0.04306]
[1764479342134,0.04351,90802.0,90801.0,0.05579]
[1764479343537,0.04551,90802.0,90801.0,0.05579]
[1764479344541,0.02443,90802.0,90801.0,0.05579]
[1764479345446,0.04551,90802.0,90801.0,0.05579]
[1764479345946,0.02443,90802.0,90801.0,0.05579]
[1764479346850,0.002,90802.0,90801.0,0.05579]
[1764479349153,4.654e-05,90810.0,90809.0,0.0540704]
[1764479350744,0.00504654,90810.0,90809.0,0.0540704]
[1764479374575,0.02835654,90810.0,90809.0,0.0540704]
[1764479379770,0.00504654,90810.0,90809.0,0.0540704]
[1764479381683,0.02835654,90810.0,90809.0,0.0540704]
[1764479388994,0.04986654,90810.0,90809.0,0.0540704]
[1764479415403,0.00504654,90810.0,90809.0,0.0540704]
[1764479450232,0.06181654,90810.0,90809.0,0.02157]
[1764479450536,0.04625,90803.0,90802.0,0.14282704]
[1764479450740,0.04625,90803.0,90802.0,0.04382]
[1764479450931,0.04625,90803.0,90802.0,0.0663413]
[1764479451734,0.04625,90803.0,90802.0,0.16534834]
[1764479451940,0.04725,90803.0,90802.0,0.16534834]
[1764479452329,0.02431,90803.0,90802.0,0.16534834]
[1764479452932,0.001,90803.0,90802.0,0.16534834]
[1764479469257,0.02431,90803.0,90802.0,0.16534834]
[1764479470162,0.001,90803.0,90802.0,0.16534834]
[1764479476269,0.001,90803.0,90802.0,0.0663413]
[1764479500696,0.02226,90803.0,90802.0,0.0663413]
[1764479501296,0.001,90803.0,90802.0,0.0663413]
[1764479509403,4.654e-05,90810.0,90809.0,0.0554204]
[1764479509602,0.04571515,90819.0,90818.0,0.05417]
[1764479510700,0.04571515,90819.0,90818.0,0.04441]
[1764479511204,0.05171515,90819.0,90818.0,0.04441]
[1764479519910,0.05171515,90819.0,90818.0,0.05734]
[1764479522001,0.00616515,90819.0,90818.0,0.05734]
[1764479522206,0.25754,90838.0,90837.0,0.02137]
[1764479522506,0.08620162,90838.0,90837.0,0.02137]
[1764479523004,0.08620162,90838.0,90837.0,0.04441]
[1764479523201,0.09720162,90838.0,90837.0,0.04541]
[1764479524205,0.08620162,90838.0,90837.0,0.04441]
[1764479524404,0.08251162,90838.0,90837.0,0.04541]
[1764479524606,0.05555,90838.0,90837.0,0.04541]
[1764479524803,0.01,90838.0,90837.0,0.04541]
[1764479525005,0.04582519,90846.0,90845.0,0.0554161]
[1764479525609,0.00027519,90846.0,90845.0,0.0554161]
[1764479526315,0.02337519,90846.0,90845.0,0.0554161]
[1764479526617,0.02637519,90846.0,90845.0,0.0554161]
[1764479527616,0.00327519,90846.0,90845.0,0.0554161]
[1764479528016,0.02637519,90846.0,90845.0,0.0554161]
[1764479528211,0.02637519,90846.0,90845.0,0.04441]
[1764479528212,0.04882519,90846.0,90845.0,0.04441]
[1764479535222,0.04882519,90846.0,90845.0,0.0554161]
[1764479570354,0.04882519,90846.0,90845.0,0.04441]
[1764479572647,0.05616519,90846.0,90845.0,0.04441]
[1764479572847,0.05616519,90846.0,90839.0,0.0110067]
[1764479573049,0.04501,90840.0,90839.0,0.0562467]
[1764479574259,0.04501,90840.0,90839.0,0.0592467]
[1764479576556,0.04501,90840.0,90839.0,0.04824]
[1764479576755,0.04501,90840.0,90839.0,0.04524]
[1764479576948,0.04501,90840.0,90839.0,0.04724]
[1764479580357,0.04501,90840.0,90839.0,0.04524]
[1764479580554,0.04501,90840.0,90839.0,0.04724]
[1764479589860,0.05161,90840.0,90839.0,0.002]
[1764479590061,0.04501,90829.0,90821.0,0.09913205]
[1764479590265,0.04501,90829.0,90828.0,0.02316515]
[1764479590667,0.04501,90829.0,90828.0,0.04540515]
[1764479594870,0.04601,90829.0,90828.0,0.04540515]
[1764479595271,0.04601,90829.0,90828.0,0.00016515]
[1764479595869,0.04501,90829.0,90828.0,0.00016515]
[1764479596472,0.04601,90829.0,90828.0,0.00016515]
[1764479597465,0.16730877,90829.0,90828.0,0.00016515]
[1764479597768,0.16730877,90829.0,90804.0,0.01323]
[1764479597769,0.16730877,90829.0,90808.0,0.0110104]
[1764479597973,0.04517,90809.0,90808.0,0.0556804]
[1764479599269,0.04517,90809.0,90808.0,0.0586804]
[1764479601679,0.04517,90809.0,90808.0,0.04767]
[1764479612587,0.04517,90809.0,90808.0,0.0586805]
[1764479614386,0.02279,90809.0,90808.0,0.0586805]
[1764479618091,0.04534,90809.0,90808.0,0.0586805]
[1764479618597,0.02279,90809.0,90808.0,0.0586805]
[1764479619294,0.04534,90809.0,90808.0,0.0586805]
[1764479623691,0.04651515,90818.0,90817.0,0.04555]
[1764479624692,0.04651515,90818.0,90817.0,0.04655]
[1764479643105,0.05943,90842.0,90841.0,0.02296]
[1764479643320,0.08557553,90842.0,90841.0,0.04555]
[1764479643603,0.07249553,90842.0,90841.0,0.04555]
[1764479645014,0.07349553,90842.0,90841.0,0.04555]
[1764479645309,0.05335,90842.0,90841.0,0.04555]
[1764479645698,0.05235,90842.0,90841.0,0.04555]
[1764479645901,0.04635,90842.0,90841.0,0.04555]
[1764479649708,0.04635,90833.0,90832.0,0.05672275]
[1764479651411,0.04635,90833.0,90832.0,0.05872275]
[1764479651916,0.04635,90833.0,90832.0,0.05672275]
[1764479652116,0.04635,90833.0,90832.0,0.05872275]
[1764479660623,0.04635,90833.0,90832.0,0.05672275]
[1764479660922,0.04635,90833.0,90832.0,0.05872275]
[1764479662227,0.04635,90833.0,90832.0,0.05672275]
[1764479662426,0.04635,90833.0,90832.0,0.05872275]
[1764479664436,0.04635,90833.0,90832.0,0.07190275]
[1764479664835,0.04635,90833.0,90832.0,0.06990275]
[1764479665133,0.04635,90833.0,90832.0,0.07190275]
[1764479665432,0.04635,90833.0,90832.0,0.06990275]
[1764479665628,0.04635,90833.0,90832.0,0.07190275]
[1764479666934,0.04635,90833.0,90832.0,0.04571515]
[1764479667126,0.04635,90833.0,90832.0,0.04771515]
[1764479668235,0.04635,90833.0,90832.0,0.04671515]
[1764479668635,0.04635,90833.0,90832.0,0.04571515]
[1764479668834,0.04635,90833.0,90832.0,0.04671515]
[1764479669738,0.04635,90833.0,90832.0,0.02412515]
[1764479670134,0.04635,90833.0,90832.0,0.04518515]
[1764479671047,0.04735,90833.0,90832.0,0.04418515]
[1764479671945,0.04635,90833.0,90832.0,0.04418515]
[1764479672947,0.04635,90833.0,90832.0,0.02312515]
[1764479674149,0.04735,90833.0,90832.0,0.02312515]
[1764479674352,0.04735,90833.0,90832.0,0.04418515]
[1764479674950,0.04735,90833.0,90832.0,0.02312515]
[1764479676651,0.04635,90833.0,90832.0,0.02312515]
[1764479677248,0.04635,90833.0,90832.0,0.04418515]
[1764479679352,0.04635,90833.0,90832.0,0.00016515]
[1764479679542,0.04735,90833.0,90832.0,0.00016515]
[1764479679742,0.07290061,90833.0,90832.0,0.00016515]
[1764479679944,0.07190061,90833.0,90832.0,0.00016515]
[1764479680552,0.07390061,90833.0,90832.0,0.00016515]
[1764479681753,0.04835,90833.0,90832.0,0.00016515]
[1764479683057,0.04635,90833.0,90832.0,0.00016515]
[1764479683258,0.04735,90833.0,90832.0,0.00016515]
[1764479684157,0.04635,90833.0,90832.0,0.00016515]
[1764479684457,0.04735,90833.0,90832.0,0.00016515]
[1764479684753,0.04635,90833.0,90832.0,0.00016515]
[1764479685058,0.04735,90833.0,90832.0,0.00016515]
[1764479686850,0.04735,90833.0,90832.0,0.02188515]
[1764479687356,0.04635,90833.0,90832.0,0.02188515]
[1764479687556,0.04735,90833.0,90832.0,0.02188515]
[1764479687958,0.04635,90833.0,90832.0,0.02188515]
[1764479689761,0.04735,90833.0,90832.0,0.02188515]
[1764479690663,0.04735,90833.0,90832.0,0.04305515]
[1764479695661,0.04635,90833.0,90832.0,0.04305515]
[1764479697062,0.04735,90833.0,90832.0,0.04305515]
[1764479701065,0.04735,90833.0,90832.0,0.00016515]
[1764479702359,0.04735,90833.0,90832.0,0.02188515]
[1764479702663,0.04735,90833.0,90832.0,0.04305515]
[1764479705167,0.04635,90833.0,90832.0,0.04305515]
[1764479705362,0.04635,90833.0,90832.0,0.05607515]
[1764479705559,0.02329,90833.0,90832.0,0.05607515]
[1764479705762,0.17473839,90842.0,90841.0,0.04289]
[1764479705954,0.07078203,90842.0,90841.0,0.04289]
[1764479706561,0.05812,90834.0,90833.0,0.0327275]
[1764479706764,0.05812,90834.0,90833.0,0.0538975]
[1764479707362,0.04508,90834.0,90833.0,0.0538975]
[1764479712167,0.04508,90834.0,90833.0,0.0548975]
[1764479712565,0.02322,90834.0,90833.0,0.0548975]
[1764479712867,0.04508,90834.0,90833.0,0.0548975]
[1764479714270,0.04508,90834.0,90833.0,0.0538975]
[1764479715867,0.04508,90834.0,90833.0,0.0548975]
[1764479717368,0.04508,90834.0,90833.0,0.0538975]
[1764479717568,0.04508,90834.0,90833.0,0.0548975]
[1764479720370,0.04508,90834.0,90833.0,0.0538975]
[1764479720570,0.04508,90834.0,90833.0,0.0548975]
[1764479723774,0.04508,90834.0,90833.0,0.0538975]
[1764479724073,0.04508,90834.0,90833.0,0.0548975]
[1764479725067,0.04508,90834.0,90833.0,0.0538975]
[1764479725271,0.04508,90834.0,90833.0,0.0548975]
[1764479731684,0.04508,90834.0,90833.0,0.0538975]
[1764479733886,0.04508,90834.0,90833.0,0.0548975]
[1764479738396,0.04508,90834.0,90833.0,0.0538975]
[1764479738694,0.04508,90834.0,90833.0,0.0548975]
[1764479740393,0.04508,90834.0,90833.0,0.0538975]
[1764479740595,0.04508,90834.0,90833.0,0.0548975]
[1764479746199,0.00027519,90846.0,90845.0,0.0457]
[1764479746388,0.0262328,90846.0,90845.0,0.0457]
[1764479746585,0.02292515,90851.0,90850.0,0.0457]
[1764479746786,0.04549,90858.0,90857.0,0.0567046]
[1764479747092,0.07145159,90858.0,90857.0,0.0567046]
[1764479747297,0.04549,90858.0,90857.0,0.0567046]
[1764479747693,0.04549,90858.0,90857.0,0.06912505]
[1764479748095,0.05049,90858.0,90857.0,0.06912505]
[1764479748697,0.05149,90858.0,90857.0,0.06912505]
[1764479748893,0.05149,90858.0,90857.0,0.05812045]
[1764479749496,0.04649,90858.0,90857.0,0.06012045]
[1764479749895,0.05078,90858.0,90857.0,0.06012045]
[1764479750497,0.04978,90858.0,90857.0,0.06012045]
[1764479751094,0.04978,90858.0,90857.0,0.05812045]
[1764479751403,0.04978,90858.0,90857.0,0.05912045]
[1764479752397,0.04549,90858.0,90857.0,0.05912045]
[1764479761106,0.04549,90858.0,90857.0,0.07012505]
[1764479765208,0.04549,90858.0,90857.0,0.05912045]
[1764479769014,0.05924,90858.0,90857.0,0.05912045]
[1764479769213,0.05924,90858.0,90857.0,0.01342045]
[1764479770719,0.06124,90858.0,90857.0,0.01242045]
[1764479770921,0.04549,90849.0,90848.0,0.04586515]
[1764479772028,0.04649,90849.0,90848.0,0.04586515]
[1764479772209,0.04649,90849.0,90848.0,0.05798337]
[1764479774024,0.04549,90849.0,90848.0,0.05798337]
[1764479774318,0.04549,90849.0,90848.0,0.00016515]
[1764479774319,0.07759212,90849.0,90848.0,0.00016515]
[1764479776220,0.07859212,90849.0,90848.0,0.00016515]
[1764479776611,0.07759212,90849.0,90848.0,0.00016515]
[1764479776823,0.08259212,90849.0,90848.0,0.00016515]
[1764479777222,0.07759212,90849.0,90848.0,0.00016515]
[1764479777517,0.08259212,90849.0,90848.0,0.00016515]
[1764479777714,0.08159212,90849.0,90848.0,0.00016515]
[1764479777914,0.08259212,90849.0,90848.0,0.00016515]
[1764479778514,0.08159212,90849.0,90848.0,0.00016515]
[1764479778821,0.08259212,90849.0,90848.0,0.00016515]
[1764479782420,0.1971045,90849.0,90848.0,0.00016515]
[1764479786529,0.1911045,90849.0,90848.0,0.00016515]
[1764479786731,0.1971045,90849.0,90848.0,0.00016515]
[1764479791630,0.1961045,90849.0,90848.0,0.00016515]
[1764479791922,0.1971045,90849.0,90848.0,0.00016515]
[1764479792430,0.1921045,90849.0,90848.0,0.00016515]
[1764479792729,0.1971045,90849.0,90848.0,0.00016515]
[1764479793536,0.1961045,90849.0,90848.0,0.00016515]
[1764479793839,0.1971045,90849.0,90848.0,0.00016515]
[1764479794031,0.1921045,90849.0,90848.0,0.00016515]
[1764479794225,0.1971045,90849.0,90848.0,0.00016515]
[1764479801533,0.1961045,90849.0,90848.0,0.00016515]
[1764479801738,0.1971045,90849.0,90848.0,0.00016515]
[1764479802136,0.1921045,90849.0,90848.0,0.00016515]
[1764479802340,0.1971045,90849.0,90848.0,0.00016515]
[1764479803643,0.1961045,90849.0,90848.0,0.00016515]
[1764479803843,0.1971045,90849.0,90848.0,0.00016515]
[1764479820549,0.1971045,90849.0,90832.0,0.09195039]
[1764479820550,0.04513,90831.0,90829.0,0.07927039]
[1764479820744,0.04513,90829.0,90828.0,0.07927039]
[1764479820944,0.04513,90825.0,90824.0,0.04315]
[1764479821640,0.04513,90825.0,90824.0,0.05527551]
[1764479821839,0.04513,90825.0,90824.0,0.03412551]
[1764479822351,0.04513,90825.0,90815.0,0.00016515]
[1764479822352,0.05695,90816.0,90815.0,0.00016515]
[1764479822744,0.08149321,90816.0,90815.0,0.00016515]
[1764479824150,0.05695,90816.0,90815.0,0.00016515]
[1764479829760,0.05663,90807.0,90795.0,0.01277]
[1764479829952,0.05663,90807.0,90806.0,0.04342531]
[1764479830353,0.05663,90807.0,90806.0,0.05562145]
[1764479831056,0.05663,90807.0,90806.0,0.05862145]
[1764479834462,0.05663,90807.0,90806.0,0.01547145]
[1764479834767,0.05609,90798.0,90797.0,0.00028632]
[1764479834959,0.04322,90793.0,90792.0,0.01177083]
[1764479835157,0.02148,90778.0,90777.0,0.05853]
[1764479835370,0.0136,90792.0,90786.0,0.04482]
[1764479835371,0.1728807,90787.0,90786.0,0.04482]
[1764479835571,0.04322,90787.0,90786.0,0.04482]
[1764479835764,0.04322,90787.0,90786.0,0.05661509]
[1764479835964,0.04334062,90787.0,90786.0,0.05661509]
[1764479837360,0.04334062,90787.0,90786.0,0.05761509]
[1764479846380,0.02160062,90787.0,90786.0,0.05761509]
[1764479846570,0.04325062,90787.0,90786.0,0.05761509]
[1764479846873,0.04325062,90787.0,90786.0,0.001]
[1764479847077,0.04325062,90787.0,90748.0,0.01302]
[1764479847078,0.04458,90767.0,90766.0,0.04589544]
[1764479847274,0.04467963,90767.0,90766.0,0.00027544]
[1764479847580,0.17227716,90767.0,90766.0,0.00027544]
[1764479848469,0.04458,90736.0,90735.0,0.02296708]
[1764479848683,0.04467309,90736.0,90735.0,0.04575708]
[1764479848881,0.04467309,90736.0,90735.0,0.05800098]
[1764479849479,0.04467309,90736.0,90735.0,0.07102098]
[1764479849867,0.04467309,90736.0,90735.0,0.07902098]
[1764479851181,9.309e-05,90736.0,90735.0,0.07902098]
[1764479858787,0.04467309,90736.0,90735.0,0.07902098]
[1764479859491,0.04467309,90736.0,90735.0,0.02038098]
[1764479859689,0.04467309,90736.0,90735.0,0.06600098]
[1764479859989,0.04467309,90736.0,90735.0,0.05375708]
[1764479860380,0.04467309,90736.0,90735.0,0.04575708]
[1764479860582,0.04467309,90736.0,90735.0,0.04875708]
[1764479863885,0.04467309,90736.0,90735.0,0.02596708]
[1764479864087,0.04467309,90736.0,90735.0,0.04882708]
[1764479868677,0.17183629,90736.0,90735.0,0.02596708]
[1764479868877,0.17183629,90736.0,90735.0,0.04853708]
[1764479875192,0.19824778,90736.0,90735.0,0.04853708]
[1764479878212,0.07108458,90736.0,90735.0,0.04853708]
[1764479878417,0.02650458,90736.0,90735.0,0.04853708]
[1764479878805,0.07121458,90736.0,90735.0,0.04853708]
[1764479881113,0.07129009,90736.0,90735.0,0.04853708]
[1764479882709,9.309e-05,90736.0,90735.0,0.04853708]
[1764479884815,0.04487524,90745.0,90744.0,0.0454]
[1764479885117,0.07125989,90745.0,90744.0,0.0454]
[1764479887215,0.07125989,90745.0,90744.0,0.0464]
[1764479889315,0.07125651,90745.0,90744.0,0.0464]
[1764479890115,0.04487524,90745.0,90744.0,0.0464]
[1764479903139,0.04487524,90745.0,90744.0,0.05966]
[1764479903436,0.04487524,90745.0,90744.0,0.0464]
[1764479915239,0.04487524,90745.0,90744.0,0.05941]
[1764479915542,0.04487524,90745.0,90744.0,0.0464]
[1764479930166,0.04487524,90745.0,90744.0,0.05979]
[1764479930363,0.00016524,90745.0,90744.0,0.05979]
[1764479931070,0.05814,90765.0,90764.0,0.04502]
[1764479931272,0.08435196,90765.0,90764.0,0.04502]
[1764479931573,0.20119843,90765.0,90764.0,0.04502]
[1764479932261,0.20619843,90765.0,90764.0,0.04502]
[1764479933770,0.04444,90756.0,90755.0,0.04518524]
[1764479934875,0.04844,90756.0,90755.0,0.04518524]
[1764479939479,0.05828,90756.0,90755.0,0.00016524]
[1764479939675,0.08447247,90756.0,90755.0,0.00016524]
[1764479940075,0.08447247,90756.0,90737.0,0.0110191]
[1764479940281,0.04444,90738.0,90737.0,0.04502]
[1764479941573,0.04444,90738.0,90737.0,0.04602]
[1764479942780,0.04444,90738.0,90737.0,0.001]
[1764479943781,0.04444,90738.0,90737.0,0.02402]
[1764479944281,0.04444,90738.0,90737.0,0.04602]
[1764479947171,0.04444,90746.0,90745.0,0.04502]
[1764479948380,0.00016524,90747.0,90746.0,0.0560381]
[1764479950981,0.00216524,90747.0,90746.0,0.0560381]
[1764479957989,0.17421229,90770.0,90769.0,0.04486]
[1764479958182,0.0443,90770.0,90769.0,0.04486]
[1764479958693,0.0443,90770.0,90769.0,0.0558753]
[1764479959080,0.04446524,90779.0,90778.0,0.04486]
[1764479960489,0.05346524,90779.0,90778.0,0.04486]
[1764479961388,0.05446524,90779.0,90778.0,0.04486]
[1764479964687,0.05377524,90779.0,90778.0,0.04486]
[1764479965998,0.01016524,90779.0,90778.0,0.04486]
[1764479966883,0.03182524,90779.0,90778.0,0.04486]
[1764479967088,0.02482524,90779.0,90778.0,0.04486]
[1764479967288,0.00316524,90779.0,90778.0,0.04486]
[1764479967692,0.04612524,90779.0,90778.0,0.04486]
[1764479967888,0.04512524,90779.0,90778.0,0.04486]
[1764479968897,0.00216524,90779.0,90778.0,0.04486]
[1764479971197,0.17287229,90800.0,90799.0,0.04338]
[1764479971391,0.04296,90800.0,90799.0,0.04338]
[1764479972399,0.06418,90800.0,90799.0,0.04338]
[1764479973298,0.06418,90800.0,90790.0,0.04354524]
[1764479973299,0.04296,90791.0,90790.0,0.04354524]
[1764479975007,0.04296,90791.0,90790.0,0.05753378]
[1764479975505,0.04696,90791.0,90790.0,0.05753378]
[1764479978895,0.04696,90791.0,90790.0,0.06955378]
[1764479980808,0.04696,90791.0,90790.0,0.07113378]
[1764479981015,0.04696,90791.0,90790.0,0.05753378]
[1764479991310,0.04696,90791.0,90790.0,0.01415378]
[1764479992112,0.07251148,90791.0,90790.0,0.01415378]
[1764479992518,0.04696,90791.0,90790.0,0.01415378]
[1764479993121,0.07251826,90791.0,90790.0,0.01415378]
[1764480007127,0.04696,90791.0,90790.0,0.01415378]
[1764480011828,0.07268717,90791.0,90790.0,0.01415378]
[1764480014842,0.07268717,90791.0,90790.0,0.03593378]
[1764480024058,0.07268717,90791.0,90790.0,0.05885378]
[1764480032555,0.07268717,90791.0,90790.0,0.03593378]
[1764480035450,0.07268717,90791.0,90790.0,0.00977772]
[1764480035648,0.04433,90779.0,90778.0,0.02117]
[1764480035858,0.04433,90779.0,90778.0,0.03436288]
[1764480035859,0.07005717,90779.0,90778.0,0.03436288]
[1764480036360,0.07005717,90779.0,90778.0,0.05768288]
[1764480036961,0.07105717,90779.0,90778.0,0.05768288]
[1764480037459,0.04533,90779.0,90778.0,0.05768288]
[1764480038360,0.04433,90779.0,90778.0,0.05768288]
[1764480038559,0.04833,90779.0,90778.0,0.05768288]
[1764480042360,0.04733,90779.0,90778.0,0.05768288]
[1764480042570,0.04733,90779.0,90778.0,0.01319288]
[1764480042863,0.04433,90770.0,90769.0,0.04465524]
[1764480043068,0.04433,90770.0,90769.0,0.05795888]
[1764480044567,0.04633,90770.0,90769.0,0.05795888]
[1764480060973,0.05685,90770.0,90769.0,0.05795888]
[1764480072079,0.05685,90770.0,90769.0,0.01346888]
[1764480072275,0.05685,90770.0,90769.0,0.05762888]
[1764480080085,0.04633,90770.0,90769.0,0.05762888]
[1764480081387,0.02385,90770.0,90769.0,0.05762888]
[1764480081576,0.002,90770.0,90769.0,0.05762888]
[1764480082586,0.1732064,90780.0,90779.0,0.04303]
[1764480082786,0.06916865,90780.0,90779.0,0.04303]
[1764480082991,0.18822745,90780.0,90779.0,0.04303]
[1764480083186,0.06916865,90780.0,90779.0,0.04303]
[1764480083383,0.04726865,90780.0,90779.0,0.04303]
[1764480083784,0.05126865,90780.0,90779.0,0.04303]
[1764480085190,0.04726865,90780.0,90779.0,0.04303]
[1764480085391,0.04926865,90780.0,90779.0,0.04303]
[1764480085785,0.04726865,90780.0,90779.0,0.04303]
[1764480085986,0.02346,90780.0,90779.0,0.04303]
[1764480089190,0.002,90780.0,90779.0,0.04303]
[1764480089394,0.04352524,90788.0,90787.0,0.04303]
[1764480089597,0.06931705,90788.0,90787.0,0.04303]
[1764480089886,0.1946685,90788.0,90787.0,0.04303]
[1764480091490,0.1976685,90788.0,90787.0,0.04303]
[1764480091993,0.17187669,90788.0,90787.0,0.04303]
[1764480104207,0.17187669,90788.0,90787.0,0.0540431]
[1764480109320,0.17187669,90788.0,90787.0,0.04303]
[1764480110116,0.19766353,90788.0,90787.0,0.04303]
[1764480115621,0.07231208,90788.0,90787.0,0.04303]
[1764480115828,0.02895208,90788.0,90787.0,0.04303]
[1764480116622,0.00316524,90788.0,90787.0,0.04303]
[1764480117915,0.02568524,90788.0,90787.0,0.04303]
[1764480119228,0.04755524,90788.0,90787.0,0.04303]
[1764480137049,0.04755524,90788.0,90787.0,0.0540431]
[1764480140050,0.04755524,90788.0,90787.0,0.04303]
[1764480147056,0.04374,90782.0,90781.0,0.07891905]
[1764480147257,0.04374,90781.0,90780.0,0.00458]
[1764480147465,0.04374,90773.0,90772.0,0.04395]
[1764480148450,0.04374,90770.0,90769.0,0.01346888]
[1764480148646,0.06922546,90770.0,90769.0,0.01346888]
[1764480148955,0.18855306,90770.0,90769.0,0.01346888]
[1764480149150,0.1630676,90770.0,90769.0,0.01346888]
[1764480149553,0.18853008,90770.0,90769.0,0.01346888]
[1764480149953,0.19053008,90770.0,90769.0,0.01346888]
[1764480150156,0.1650676,90770.0,90769.0,0.01346888]
[1764480174775,0.19072231,90770.0,90769.0,0.01346888]
[1764480179079,0.51698231,90770.0,90753.0,0.07891905]
[1764480179277,0.51698231,90770.0,90726.0,0.01311556]
[1764480179278,0.04372,90736.0,90726.0,0.13843645]
[1764480179480,0.06937471,90736.0,90726.0,0.00027556]
[1764480179669,0.19301218,90736.0,90726.0,0.00027556]
[1764480179867,0.19301218,90736.0,90735.0,0.01380493]
[1764480180474,0.19301218,90736.0,90735.0,0.01480493]
[1764480181180,0.08039401,90736.0,90735.0,0.06058493]
[1764480181381,0.0547393,90736.0,90735.0,0.06058493]
[1764480183885,0.0110193,90736.0,90735.0,0.06058493]
[1764480184090,0.0110189,90739.0,90738.0,0.04578]
[1764480185092,0.0110189,90739.0,90738.0,0.04678]
[1764480186297,0.0337289,90739.0,90738.0,0.04678]
[1764480187604,0.0547389,90739.0,90738.0,0.04678]
[1764480187801,0.13004332,90745.0,90738.0,0.04678]
[1764480187802,0.04388524,90745.0,90744.0,0.04578]
[1764480188097,0.02287524,90745.0,90744.0,0.05862]
[1764480188597,0.04388524,90745.0,90744.0,0.05862]
[1764480189189,0.04388524,90745.0,90744.0,0.0696383]
[1764480189390,0.04388524,90745.0,90744.0,0.05862]
[1764480194795,0.02287524,90745.0,90744.0,0.05862]
[1764480195403,0.04581524,90745.0,90744.0,0.05862]
[1764480195899,0.04581524,90745.0,90744.0,0.04578]
[1764480196099,0.04581524,90745.0,90744.0,0.05866]
[1764480198906,0.00016524,90745.0,90744.0,0.05866]
[1764480199795,0.04447524,90745.0,90744.0,0.05866]
[1764480200103,0.04447524,90745.0,90744.0,0.05966]
[1764480201003,0.04447524,90745.0,90744.0,0.04678]
[1764480212112,0.04447524,90745.0,90744.0,0.0597]
[1764480213108,0.00016524,90745.0,90744.0,0.0597]
[1764480213314,0.18533808,90760.0,90759.0,0.04594]
[1764480213512,0.06879811,90760.0,90759.0,0.04594]
[1764480214705,0.07279811,90760.0,90759.0,0.04594]
[1764480215405,0.07179811,90760.0,90759.0,0.04594]
[1764480215606,0.06879811,90760.0,90759.0,0.04594]
[1764480215807,0.07079811,90760.0,90759.0,0.04594]
[1764480216706,0.07079811,90760.0,90750.0,0.01829274]
[1764480216707,0.04252,90751.0,90750.0,0.04610524]
[1764480217906,0.04252,90751.0,90750.0,0.04710524]
[1764480218818,0.04252,90751.0,90750.0,0.04610524]
[1764480219611,0.04352,90751.0,90750.0,0.04610524]
[1764480220617,0.04352,90751.0,90750.0,0.02318524]
[1764480222316,0.04352,90751.0,90750.0,0.00016524]
[1764480222317,0.06980435,90751.0,90750.0,0.00016524]